fUST/lending_fUST_20250208
["ID","MTS","AMOUNT","RATE_DAILY","PERIOD"]
[352232034,1739013042170,-500.0,0.00011095,2]
[352232036,1739013042179,-500.0,0.00011095,2]
[352232038,1739013042188,-500.0,0.00011095,2]
[352232040,1739013042198,-500.0,0.00011095,2]
[352232042,1739013042208,-500.0,0.00011095,2]
[352232044,1739013042217,-500.0,0.00011095,2]
[352232046,1739013042227,-1719.8,0.00011095,2]
[352232048,1739013042236,-500.0,0.00011095,2]
[352232050,1739013042248,-9474.92,0.00011095,2]
[352232053,1739013042257,-743.27,0.00011095,2]
[352232055,1739013042267,-500.0,0.00011095,2]
[352232057,1739013042276,-513.58999976,0.00011095,2]
[352232059,1739013042285,-773.09,0.00011095,2]
[352232060,1739013042294,-3945.69,0.00011095,2]
[352232061,1739013042303,-500.0,0.00011095,2]
[352232062,1739013042312,-500.0,0.00011095,2]
[352232063,1739013042321,-1333.61,0.00011095,2]
[352232064,1739013042333,-1249.67,0.00011095,2]
[352232065,1739013042344,-769.46,0.00011095,2]
[352232066,1739013042353,-633.33,0.00011095,2]
[352232067,1739013042363,-3427.74,0.00011095,2]
[352232068,1739013042373,-500.0,0.00011095,2]
[352232069,1739013042383,-500.0,0.00011095,2]
[352232070,1739013042392,-182.26280745,0.00011095,2]
[352232071,1739013042400,-500.0,0.00011095,2]
[352232072,1739013042410,-500.0,0.00011095,2]
[352232073,1739013042419,-500.0,0.00011095,2]
[352232074,1739013042428,-500.0,0.00011095,2]
[352232075,1739013042437,-500.0,0.00011095,2]
[352232076,1739013042446,-500.0,0.00011095,2]
[352232077,1739013042456,-500.0,0.00011095,2]
[352232078,1739013042465,-500.0,0.00011095,2]
[352232079,1739013042474,-1477.59,0.00011095,2]
[352232080,1739013042484,-500.0,0.00011095,2]
[352232082,1739013042504,-500.0,0.00011095,2]
[352232084,1739013042514,-500.0,0.00011095,2]
[352232086,1739013042524,-276.8169302,0.00011095,2]
[352232088,1739013042533,-500.0,0.00011095,2]
[352232090,1739013042542,-500.0,0.00011095,2]
[352232092,1739013042551,-4159.53,0.00011095,2]
[352232094,1739013042561,-500.0,0.00011095,2]
[352232096,1739013042570,-500.0,0.00011095,2]
[352232098,1739013042580,-5561.26,0.00011095,2]
[352232100,1739013042589,-500.0,0.00011095,2]
[352232101,1739013042598,-500.0,0.00011095,2]
[352232103,1739013042607,-690.01,0.00011095,2]
[352232105,1739013042616,-500.0,0.00011095,2]
[352232107,1739013042625,-2115.37,0.00011095,2]
[352232109,1739013042634,-1685.04,0.00011095,2]
[352232111,1739013042643,-500.0,0.00011095,2]
[352232113,1739013042653,-500.0,0.00011095,2]
[352232115,1739013042663,-500.0,0.00011095,2]
[352232117,1739013042673,-500.0,0.00011095,2]
[352232119,1739013042681,-500.0,0.00011095,2]
[352232121,1739013042691,-1228.03,0.00011095,2]
[352232147,1739013042830,-1445.5,0.00011095,2]
[352232150,1739013042841,-500.0,0.00011095,2]
[352232152,1739013042850,-500.0,0.00011095,2]
[352232154,1739013042859,-500.0,0.00011095,2]
[352232157,1739013042868,-500.0,0.00011095,2]
[352232160,1739013042878,-47197.88,0.00011095,2]
[352232163,1739013042887,-243.74158017,0.00011095,2]
[352232166,1739013042896,-16725.12,0.00011095,2]
[352232169,1739013042905,-500.0,0.00011095,2]
[352232172,1739013042914,-500.0,0.00011095,2]
[352232175,1739013042923,-500.0,0.00011095,2]
[352232177,1739013042933,-1474.87,0.00011095,2]
[352232179,1739013042942,-500.0,0.00011095,2]
[352232181,1739013042951,-500.0,0.00011095,2]
[352232183,1739013042960,-500.0,0.00011095,2]
[352232184,1739013042969,-500.0,0.00011095,2]
[352232186,1739013042979,-500.0,0.00011095,2]
[352232188,1739013042988,-500.0,0.00011095,2]
[352232190,1739013042997,-500.0,0.00011095,2]
[352232192,1739013043006,-500.0,0.00011095,2]
[352232194,1739013043015,-2098.99,0.00011095,2]
[352232196,1739013043025,-500.0,0.00011095,2]
[352232198,1739013043034,-579.46,0.00011095,2]
[352232201,1739013043043,-983.36,0.00011095,2]
[352232203,1739013043053,-500.0,0.00011095,2]
[352232204,1739013043062,-1998.66,0.00011095,2]
[352232206,1739013043072,-1969.37,0.00011095,2]
[352232209,1739013043081,-500.0,0.00011095,2]
[352232210,1739013043091,-500.0,0.00011095,2]
[352232212,1739013043100,-1227.56,0.00011095,2]
[352232214,1739013043109,-557.71,0.00011095,2]
[352232216,1739013043119,-404.03019968,0.00011095,2]
[352232218,1739013043128,-500.0,0.00011095,2]
[352232220,1739013043137,-500.0,0.00011095,2]
[352232222,1739013043147,-500.0,0.00011095,2]
[352232224,1739013043156,-500.0,0.00011095,2]
[352232226,1739013043165,-500.0,0.00011095,2]
[352232228,1739013043174,-1412.97,0.00011095,2]
[352232230,1739013043183,-500.0,0.00011095,2]
[352232232,1739013043193,-672.32,0.00011095,2]
[352232234,1739013043202,-500.0,0.00011095,2]
[352232236,1739013043211,-2219.88,0.00011095,2]
[352232238,1739013043220,-500.0,0.00011095,2]
[352232240,1739013043229,-500.0,0.00011095,2]
[352232242,1739013043241,-500.0,0.00011095,2]
[352232244,1739013043251,-500.0,0.00011095,2]
[352232246,1739013043261,-4164.04,0.00011095,2]
[352232248,1739013043270,-3487.73,0.00011095,2]
[352232250,1739013043279,-500.0,0.00011095,2]
[352232252,1739013043288,-9145.14,0.00011095,2]
[352232254,1739013043297,-500.0,0.00011095,2]
[352232256,1739013043306,-638.99,0.00011095,2]
[352232258,1739013043315,-4209.68,0.00011095,2]
[352232260,1739013043325,-1747.62,0.00011095,2]
[352232262,1739013043334,-856.23,0.00011095,2]
[352232264,1739013043346,-1603.73,0.00011095,2]
[352232266,1739013043355,-935.88,0.00011095,2]
[352232268,1739013043364,-500.0,0.00011095,2]
[352232270,1739013043374,-1749.15,0.00011095,2]
[352232272,1739013043385,-1378.16,0.00011095,2]
[352232274,1739013043394,-500.0,0.00011095,2]
[352232276,1739013043404,-500.0,0.00011095,2]
[352232278,1739013043413,-4646.5,0.00011095,2]
[352232280,1739013043423,-500.0,0.00011095,2]
[352232282,1739013043432,-500.0,0.00011095,2]
[352232284,1739013043441,-651.17,0.00011095,2]
[352232287,1739013043451,-893.61,0.00011095,2]
[352232290,1739013043460,-664.04,0.00011095,2]
[352232293,1739013043469,-500.0,0.00011095,2]
[352232296,1739013043478,-500.0,0.00011095,2]
[352232299,1739013043488,-500.0,0.00011095,2]
[352232302,1739013043497,-500.0,0.00011095,2]
[352232305,1739013043507,-500.0,0.00011095,2]
[352232308,1739013043516,-1100.89,0.00011095,2]
[352232311,1739013043525,-1923.5,0.00011095,2]
[352232314,1739013043534,-500.0,0.00011095,2]
[352232317,1739013043544,-500.0,0.00011095,2]
[352232320,1739013043554,-500.0,0.00011095,2]
[352232322,1739013043563,-1609.09,0.00011095,2]
[352232325,1739013043573,-500.0,0.00011095,2]
[352232328,1739013043582,-368.67574739,0.00011095,2]
[352232331,1739013043592,-500.0,0.00011095,2]
[352232334,1739013043601,-500.0,0.00011095,2]
[352232336,1739013043610,-500.0,0.00011095,2]
[352232338,1739013043620,-3037.2,0.00011095,2]
[352232340,1739013043629,-500.0,0.00011095,2]
[352232343,1739013043638,-151.0,0.000112,2]
[352232346,1739013043648,-151.0,0.000112,2]
[352232348,1739013043658,-500.0,0.00011232,2]
[352232350,1739013043667,-500.0,0.00011232,2]
[352232352,1739013043676,-185.95499664,0.00011232,2]
[352232354,1739013043685,-500.0,0.00011232,2]
[352232356,1739013043694,-500.0,0.00011232,2]
[352232358,1739013043704,-500.0,0.00011232,2]
[352232360,1739013043713,-500.0,0.00011232,2]
[352232362,1739013043723,-714.6,0.00011232,2]
[352232364,1739013043732,-500.0,0.00011232,2]
[352232366,1739013043742,-513.93161765,0.00011232,2]
[352232368,1739013043751,-247.76174579,0.00011232,2]
[352232370,1739013043760,-956.38,0.00011232,2]
[352232372,1739013043770,-500.0,0.00011232,2]
[352232374,1739013043779,-500.0,0.00011232,2]
[352232376,1739013043788,-500.0,0.00011232,2]
[352232378,1739013043798,-500.0,0.00011232,2]
[352232380,1739013043807,-500.0,0.00011232,2]
[352232382,1739013043817,-500.0,0.00011232,2]
[352232384,1739013043827,-500.0,0.00011232,2]
[352232386,1739013043836,-778.36,0.00011232,2]
[352232388,1739013043846,-513.72,0.00011232,2]
[352232390,1739013043855,-500.0,0.00011232,2]
[352232392,1739013043865,-500.0,0.00011232,2]
[352232394,1739013043874,-500.0,0.00011232,2]
[352232396,1739013043883,-500.0,0.00011232,2]
[352232398,1739013043893,-664.21,0.00011232,2]
[352232400,1739013043902,-500.0,0.00011232,2]
[352232402,1739013043913,-365.73,0.00011232,2]
[352232404,1739013043922,-561.22,0.00011232,2]
[352232406,1739013043931,-500.0,0.00011232,2]
[352232408,1739013043941,-500.0,0.00011232,2]
[352232410,1739013043949,-500.0,0.00011232,2]
[352232412,1739013043959,-699.94,0.00011232,2]
[352232414,1739013043968,-500.0,0.00011232,2]
[352232416,1739013043977,-500.0,0.00011232,2]
[352232418,1739013043986,-500.0,0.00011232,2]
[352232420,1739013043995,-500.0,0.00011232,2]
[352232422,1739013044004,-500.0,0.00011232,2]
[352232424,1739013044014,-500.0,0.00011232,2]
[352232426,1739013044023,-500.0,0.00011232,2]
[352232428,1739013044031,-500.0,0.00011232,2]
[352232430,1739013044041,-500.0,0.00011232,2]
[352232432,1739013044050,-500.0,0.00011232,2]
[352232434,1739013044059,-1312.15,0.00011232,2]
[352232436,1739013044068,-500.0,0.00011232,2]
[352232438,1739013044078,-994.33,0.00011232,2]
[352232440,1739013044087,-1337.38,0.00011232,2]
[352232442,1739013044096,-500.0,0.00011232,2]
[352232444,1739013044105,-500.0,0.00011232,2]
[352232446,1739013044114,-515.34,0.00011232,2]
[352232448,1739013044123,-500.0,0.00011232,2]
[352232450,1739013044132,-500.0,0.00011232,2]
[352232452,1739013044142,-500.0,0.00011232,2]
[352232454,1739013044151,-500.0,0.00011232,2]
[352232456,1739013044160,-500.0,0.00011232,2]
[352232458,1739013044170,-500.0,0.00011232,2]
[352232460,1739013044179,-682.72,0.00011232,2]
[352232462,1739013044188,-500.0,0.00011232,2]
[352232464,1739013044198,-500.0,0.00011232,2]
[352232466,1739013044207,-500.0,0.00011232,2]
[352232468,1739013044216,-546.78,0.00011232,2]
[352232470,1739013044225,-500.0,0.00011232,2]
[352232472,1739013044233,-438.53863776,0.00011232,2]
[352232474,1739013044242,-500.0,0.00011232,2]
[352232476,1739013044252,-500.0,0.00011232,2]
[352232478,1739013044262,-500.0,0.00011232,2]
[352232480,1739013044271,-1470.99,0.00011232,2]
[352232482,1739013044280,-500.0,0.00011232,2]
[352232484,1739013044289,-500.0,0.00011232,2]
[352232485,1739013044298,-1039.26,0.00011232,2]
[352232487,1739013044306,-500.0,0.00011232,2]
[352232489,1739013044315,-1458.39,0.00011232,2]
[352232491,1739013044324,-500.0,0.00011232,2]
[352232493,1739013044333,-500.0,0.00011232,2]
[352232495,1739013044343,-500.0,0.00011232,2]
[352232497,1739013044354,-500.0,0.00011232,2]
[352232500,1739013044365,-500.0,0.00011232,2]
[352232502,1739013044374,-500.0,0.00011232,2]
[352232504,1739013044385,-500.0,0.00011232,2]
[352232506,1739013044394,-1719.8,0.00011232,2]
[352232508,1739013044403,-500.0,0.00011232,2]
[352232510,1739013044413,-9474.92,0.00011232,2]
[352232511,1739013044422,-743.27,0.00011232,2]
[352232513,1739013044431,-500.0,0.00011232,2]
[352232515,1739013044440,-773.09,0.00011232,2]
[352232517,1739013044450,-3945.69,0.00011232,2]
[352232519,1739013044459,-500.0,0.00011232,2]
[352232521,1739013044469,-1333.61,0.00011232,2]
[352232523,1739013044478,-1249.67,0.00011232,2]
[352232525,1739013044487,-769.46,0.00011232,2]
[352232527,1739013044497,-633.33,0.00011232,2]
[352232529,1739013044506,-3427.74,0.00011232,2]
[352232531,1739013044516,-500.0,0.00011232,2]
[352232533,1739013044525,-500.0,0.00011232,2]
[352232535,1739013044535,-518.1928402,0.00011232,2]
[352232537,1739013044544,-500.0,0.00011232,2]
[352232539,1739013044553,-500.0,0.00011232,2]
[352232541,1739013044563,-500.0,0.00011232,2]
[352232543,1739013044572,-500.0,0.00011232,2]
[352232545,1739013044581,-500.0,0.00011232,2]
[352232548,1739013044591,-1477.59,0.00011232,2]
[352232550,1739013044600,-500.0,0.00011232,2]
[352232552,1739013044609,-500.0,0.00011232,2]
[352232554,1739013044619,-500.0,0.00011232,2]
[352232555,1739013044628,-500.0,0.00011232,2]
[352232557,1739013044637,-500.0,0.00011232,2]
[352232559,1739013044646,-4159.53,0.00011232,2]
[352232562,1739013044656,-500.0,0.00011232,2]
[352232564,1739013044665,-500.0,0.00011232,2]
[352232565,1739013044675,-5561.26,0.00011232,2]
[352232568,1739013044684,-500.0,0.00011232,2]
[352232570,1739013044693,-500.0,0.00011232,2]
[352232572,1739013044702,-690.01,0.00011232,2]
[352232574,1739013044712,-2115.37,0.00011232,2]
[352232576,1739013044721,-1685.04,0.00011232,2]
[352232578,1739013044731,-500.0,0.00011232,2]
[352232580,1739013044740,-500.0,0.00011232,2]
[352232581,1739013044749,-500.0,0.00011232,2]
[352232583,1739013044758,-226.68405958,0.00011232,2]
[352232584,1739013044767,-500.0,0.00011232,2]
[352232585,1739013044776,-1228.03,0.00011232,2]
[352232586,1739013044785,-1445.5,0.00011232,2]
[352232587,1739013044794,-500.0,0.00011232,2]
[352232588,1739013044803,-500.0,0.00011232,2]
[352232589,1739013044812,-500.0,0.00011232,2]
[352232590,1739013044820,-500.0,0.00011232,2]
[352232592,1739013044829,-47197.88,0.00011232,2]
[352232594,1739013044839,-16725.12,0.00011232,2]
[352232596,1739013044848,-500.0,0.00011232,2]
[352232598,1739013044857,-500.0,0.00011232,2]
[352232600,1739013044866,-500.0,0.00011232,2]
[352232602,1739013044875,-1474.87,0.00011232,2]
[352232604,1739013044884,-500.0,0.00011232,2]
[352232606,1739013044893,-500.0,0.00011232,2]
[352232608,1739013044903,-500.0,0.00011232,2]
[352232610,1739013044913,-500.0,0.00011232,2]
[352232613,1739013044922,-500.0,0.00011232,2]
[352232615,1739013044941,-500.0,0.00011232,2]
[352232618,1739013044951,-500.0,0.00011232,2]
[352232620,1739013044961,-2098.99,0.00011232,2]
[352232622,1739013044971,-500.0,0.00011232,2]
[352232624,1739013044981,-579.46,0.00011232,2]
[352232626,1739013044990,-983.36,0.00011232,2]
[352232628,1739013044999,-500.0,0.00011232,2]
[352232630,1739013045009,-1998.66,0.00011232,2]
[352232632,1739013045019,-1969.37,0.00011232,2]
[352232633,1739013045028,-500.0,0.00011232,2]
[352232635,1739013045038,-500.0,0.00011232,2]
[352232638,1739013045047,-1227.56,0.00011232,2]
[352232639,1739013045057,-557.71,0.00011232,2]
[352232641,1739013045067,-500.0,0.00011232,2]
[352232643,1739013045078,-500.0,0.00011232,2]
[352232645,1739013045088,-500.0,0.00011232,2]
[352232647,1739013045098,-500.0,0.00011232,2]
[352232650,1739013045108,-500.0,0.00011232,2]
[352232652,1739013045118,-1412.97,0.00011232,2]
[352232654,1739013045127,-500.0,0.00011232,2]
[352232656,1739013045137,-672.32,0.00011232,2]
[352232658,1739013045147,-500.0,0.00011232,2]
[352232660,1739013045157,-2219.88,0.00011232,2]
[352232662,1739013045167,-500.0,0.00011232,2]
[352232664,1739013045176,-500.0,0.00011232,2]
[352232666,1739013045186,-500.0,0.00011232,2]
[352232668,1739013045197,-4164.04,0.00011232,2]
[352232670,1739013045207,-3487.73,0.00011232,2]
[352232672,1739013045216,-500.0,0.00011232,2]
[352232674,1739013045227,-9145.14,0.00011232,2]
[352232676,1739013045237,-500.0,0.00011232,2]
[352232678,1739013045246,-4209.68,0.00011232,2]
[352232680,1739013045258,-638.99,0.00011232,2]
[352232682,1739013045268,-1747.62,0.00011232,2]
[352232684,1739013045278,-856.23,0.00011232,2]
[352232686,1739013045288,-1603.73,0.00011232,2]
[352232688,1739013045299,-935.88,0.00011232,2]
[352232690,1739013045310,-500.0,0.00011232,2]
[352232692,1739013045321,-1749.15,0.00011232,2]
[352232694,1739013045332,-1378.16,0.00011232,2]
[352232696,1739013045343,-500.0,0.00011232,2]
[352232699,1739013045354,-500.0,0.00011232,2]
[352232701,1739013045364,-4646.5,0.00011232,2]
[352232702,1739013045374,-500.0,0.00011232,2]
[352232705,1739013045385,-500.0,0.00011232,2]
[352232707,1739013045395,-651.17,0.00011232,2]
[352232708,1739013045405,-893.61,0.00011232,2]
[352232711,1739013045415,-664.04,0.00011232,2]
[352232712,1739013045426,-500.0,0.00011232,2]
[352232715,1739013045436,-500.0,0.00011232,2]
[352232717,1739013045446,-500.0,0.00011232,2]
[352232718,1739013045455,-500.0,0.00011232,2]
[352232721,1739013045465,-1100.89,0.00011232,2]
[352232723,1739013045475,-1923.5,0.00011232,2]
[352232725,1739013045485,-500.0,0.00011232,2]
[352232727,1739013045495,-638.39880981,0.00011232,2]
[352232729,1739013045506,-222.94555897,0.00011232,2]
[352232731,1739013045516,-1609.09,0.00011232,2]
[352232733,1739013045525,-500.0,0.00011232,2]
[352232735,1739013045534,-500.0,0.00011232,2]
[352232737,1739013045543,-500.0,0.00011232,2]
[352232739,1739013045553,-500.0,0.00011232,2]
[352232741,1739013045562,-3037.2,0.00011232,2]
[352232743,1739013045572,-500.0,0.00011232,2]
[352232745,1739013045582,-151.0,0.000113,2]
[352232747,1739013045591,-151.0,0.000113,2]
[352232749,1739013045601,-215.7975175,0.000113,2]
[352232751,1739013045611,-236.1487272,0.000113,2]
[352232753,1739013045620,-153.0,0.000113,2]
[352232755,1739013045630,-210.1858558,0.000113,2]
[352232757,1739013045639,-153.0,0.000113,2]
[352232759,1739013045649,-500.0,0.00011369,2]
[352232761,1739013045659,-500.0,0.00011369,2]
[352232763,1739013045668,-500.0,0.00011369,2]
[352232765,1739013045678,-500.0,0.00011369,2]
[352232767,1739013045689,-500.0,0.00011369,2]
[352232769,1739013045699,-500.0,0.00011369,2]
[352232789,1739013045870,-714.6,0.00011369,2]
[352232791,1739013045880,-500.0,0.00011369,2]
[352232793,1739013045889,-956.38,0.00011369,2]
[352232795,1739013045899,-500.0,0.00011369,2]
[352232797,1739013045908,-500.0,0.00011369,2]
[352232799,1739013045918,-500.0,0.00011369,2]
[352232801,1739013045928,-500.0,0.00011369,2]
[352232803,1739013045937,-500.0,0.00011369,2]
[352232805,1739013045947,-500.0,0.00011369,2]
[352232807,1739013045956,-282.62964998,0.00011369,2]
[352232809,1739013045965,-778.36,0.00011369,2]
[352232811,1739013045975,-513.72,0.00011369,2]
[352232813,1739013045984,-500.0,0.00011369,2]
[352232815,1739013045993,-500.0,0.00011369,2]
[352232817,1739013046003,-500.0,0.00011369,2]
[352232819,1739013046012,-664.21,0.00011369,2]
[352232821,1739013046022,-500.0,0.00011369,2]
[352232823,1739013046031,-561.22,0.00011369,2]
[352232825,1739013046040,-500.0,0.00011369,2]
[352232827,1739013046051,-500.0,0.00011369,2]
[352232829,1739013046060,-500.0,0.00011369,2]
[352232832,1739013046070,-699.94,0.00011369,2]
[352232834,1739013046080,-500.0,0.00011369,2]
[352232836,1739013046089,-500.0,0.00011369,2]
[352232838,1739013046099,-500.0,0.00011369,2]
[352232840,1739013046110,-500.0,0.00011369,2]
[352232842,1739013046119,-500.0,0.00011369,2]
[352232844,1739013046128,-500.0,0.00011369,2]
[352232846,1739013046138,-500.0,0.00011369,2]
[352232848,1739013046147,-500.0,0.00011369,2]
[352232850,1739013046156,-500.0,0.00011369,2]
[352232852,1739013046166,-1312.15,0.00011369,2]
[352232854,1739013046175,-500.0,0.00011369,2]
[352232856,1739013046183,-994.33,0.00011369,2]
[352232858,1739013046193,-1337.38,0.00011369,2]
[352232860,1739013046203,-500.0,0.00011369,2]
[352232862,1739013046212,-500.0,0.00011369,2]
[352232864,1739013046221,-500.0,0.00011369,2]
[352232866,1739013046230,-500.0,0.00011369,2]
[352232868,1739013046239,-500.0,0.00011369,2]
[352232870,1739013046249,-500.0,0.00011369,2]
[352232872,1739013046259,-682.72,0.00011369,2]
[352232874,1739013046268,-500.0,0.00011369,2]
[352232876,1739013046277,-500.0,0.00011369,2]
[352232878,1739013046286,-500.0,0.00011369,2]
[352232880,1739013046296,-546.78,0.00011369,2]
[352232882,1739013046306,-500.0,0.00011369,2]
[352232884,1739013046315,-500.0,0.00011369,2]
[352232886,1739013046324,-500.0,0.00011369,2]
[352232888,1739013046333,-575.61,0.00011369,2]
[352232890,1739013046348,-1470.99,0.00011369,2]
[352232892,1739013046357,-500.0,0.00011369,2]
[352232894,1739013046366,-500.0,0.00011369,2]
[352232896,1739013046376,-1039.26,0.00011369,2]
[352232898,1739013046386,-500.0,0.00011369,2]
[352232900,1739013046399,-1458.39,0.00011369,2]
[352232902,1739013046409,-500.0,0.00011369,2]
[352232904,1739013046418,-500.0,0.00011369,2]
[352232906,1739013046429,-500.0,0.00011369,2]
[352232908,1739013046438,-500.0,0.00011369,2]
[352232910,1739013046449,-500.0,0.00011369,2]
[352232912,1739013046459,-236.93711305,0.00011369,2]
[352232914,1739013046468,-500.0,0.00011369,2]
[352232916,1739013046478,-1719.8,0.00011369,2]
[352232918,1739013046487,-500.0,0.00011369,2]
[352232920,1739013046497,-9474.92,0.00011369,2]
[352232922,1739013046507,-743.27,0.00011369,2]
[352232924,1739013046517,-500.0,0.00011369,2]
[352232926,1739013046527,-773.09,0.00011369,2]
[352232928,1739013046538,-3945.69,0.00011369,2]
[352232931,1739013046548,-500.0,0.00011369,2]
[352232933,1739013046558,-1333.61,0.00011369,2]
[352232935,1739013046568,-1249.67,0.00011369,2]
[352232937,1739013046578,-769.46,0.00011369,2]
[352232939,1739013046587,-633.33,0.00011369,2]
[352232941,1739013046599,-3427.74,0.00011369,2]
[352232944,1739013046610,-500.0,0.00011369,2]
[352232946,1739013046621,-500.0,0.00011369,2]
[352232948,1739013046631,-500.0,0.00011369,2]
[352232949,1739013046640,-500.0,0.00011369,2]
[352232952,1739013046650,-500.0,0.00011369,2]
[352232954,1739013046660,-500.0,0.00011369,2]
[352232956,1739013046669,-500.0,0.00011369,2]
[352232958,1739013046681,-1477.59,0.00011369,2]
[352232960,1739013046690,-500.0,0.00011369,2]
[352232962,1739013046700,-500.0,0.00011369,2]
[352232964,1739013046709,-500.0,0.00011369,2]
[352232966,1739013046718,-4159.53,0.00011369,2]
[352232968,1739013046728,-500.0,0.00011369,2]
[352232970,1739013046737,-500.0,0.00011369,2]
[352232972,1739013046746,-5561.26,0.00011369,2]
[352232974,1739013046756,-500.0,0.00011369,2]
[352232976,1739013046765,-500.0,0.00011369,2]
[352232978,1739013046775,-690.01,0.00011369,2]
[352232980,1739013046785,-2115.37,0.00011369,2]
[352232982,1739013046795,-1685.04,0.00011369,2]
[352232984,1739013046804,-500.0,0.00011369,2]
[352232986,1739013046814,-500.0,0.00011369,2]
[352232988,1739013046823,-500.0,0.00011369,2]
[352232990,1739013046832,-500.0,0.00011369,2]
[352232992,1739013046841,-1228.03,0.00011369,2]
[352232994,1739013046850,-1445.5,0.00011369,2]
[352232996,1739013046860,-500.0,0.00011369,2]
[352232998,1739013046869,-500.0,0.00011369,2]
[352233000,1739013046878,-500.0,0.00011369,2]
[352233002,1739013046887,-500.0,0.00011369,2]
[352233004,1739013046897,-47197.88,0.00011369,2]
[352233006,1739013046906,-16725.12,0.00011369,2]
[352233008,1739013046915,-500.0,0.00011369,2]
[352233010,1739013046924,-500.0,0.00011369,2]
[352233012,1739013046934,-500.0,0.00011369,2]
[352233014,1739013046943,-1474.87,0.00011369,2]
[352233016,1739013046952,-500.0,0.00011369,2]
[352233018,1739013046962,-500.0,0.00011369,2]
[352233020,1739013046971,-500.0,0.00011369,2]
[352233022,1739013046980,-500.0,0.00011369,2]
[352233024,1739013046990,-500.0,0.00011369,2]
[352233026,1739013046999,-500.0,0.00011369,2]
[352233028,1739013047009,-2098.99,0.00011369,2]
[352233030,1739013047019,-500.0,0.00011369,2]
[352233032,1739013047028,-579.46,0.00011369,2]
[352233034,1739013047037,-983.36,0.00011369,2]
[352233036,1739013047046,-500.0,0.00011369,2]
[352233038,1739013047055,-1998.66,0.00011369,2]
[352233040,1739013047065,-1969.37,0.00011369,2]
[352233042,1739013047074,-500.0,0.00011369,2]
[352233044,1739013047083,-500.0,0.00011369,2]
[352233046,1739013047093,-1227.56,0.00011369,2]
[352233048,1739013047102,-557.71,0.00011369,2]
[352233050,1739013047112,-500.0,0.00011369,2]
[352233052,1739013047121,-500.0,0.00011369,2]
[352233054,1739013047130,-500.0,0.00011369,2]
[352233056,1739013047139,-500.0,0.00011369,2]
[352233058,1739013047149,-500.0,0.00011369,2]
[352233060,1739013047159,-1412.97,0.00011369,2]
[352233062,1739013047168,-500.0,0.00011369,2]
[352233065,1739013047178,-672.32,0.00011369,2]
[352233067,1739013047187,-500.0,0.00011369,2]
[352233069,1739013047197,-2219.88,0.00011369,2]
[352233070,1739013047206,-500.0,0.00011369,2]
[352233072,1739013047215,-500.0,0.00011369,2]
[352233074,1739013047224,-500.0,0.00011369,2]
[352233076,1739013047233,-4164.04,0.00011369,2]